bitfinex-derivatives/quotes_ETHF0:USTF0_20241020
["timestamp","ask_amount","ask_price","bid_price","bid_amount"]
[1729429105495,0.37777,2647.2,2646.9,4.4043]
[1729429105695,0.37777,2647.2,2647.0,0.37779]
[1729429105902,0.37777,2647.2,2647.1,0.37779]
[1729429106295,0.37775,2647.4,2647.2,0.37777]
[1729429106596,4.79406865,2648.6,2647.3,0.8298]
[1729429106803,1.88774,2648.8,2647.6,3.2078]
[1729429106804,40.8,2647.8,2647.6,3.2078]
[1729429106998,40.8,2647.8,2647.7,0.4116]
[1729429106999,41.17769,2647.8,2647.7,0.4116]
[1729429107604,0.37769,2647.8,2647.7,0.4116]
[1729429108702,40.8,2647.9,2647.7,0.4116]
[1729429108904,41.17768,2647.9,2647.7,0.4116]
[1729429109095,41.17768,2647.9,2647.7,0.7893]
[1729429109289,41.17768,2647.9,2647.8,0.4114]
[1729429112411,40.8,2647.9,2647.8,0.78909]
[1729429112704,0.77405,2648.1,2647.9,0.37767]
[1729429112905,0.37764,2648.2,2648.0,3.2078]
[1729429113103,0.37764,2648.2,2648.1,0.393]
[1729429115901,41.6012,2648.3,2648.0,3.2078]
[1729429116108,0.37769,2647.8,2647.7,4.0158]
[1729429116308,0.37769,2647.8,2647.7,3.2078]
[1729429117005,0.4213,2648.1,2647.7,3.2078]
[1729429117006,0.37767,2647.9,2647.7,7.36229]
[1729429117213,0.4213,2648.1,2647.7,3.2078]
[1729429117506,0.37769,2647.8,2647.7,3.2078]
[1729429117905,0.37769,2647.8,2647.7,6.9846]
[1729429120306,0.37768,2647.9,2647.7,8.1883]
[1729429120502,0.37768,2647.9,2647.7,4.0338]
[1729429120702,0.37769,2647.8,2647.7,4.0338]
[1729429121003,0.37769,2647.8,2647.7,7.8106]
[1729429122011,0.37769,2647.8,2647.7,6.9846]
[1729429122317,0.37769,2647.8,2647.7,7.8106]
[1729429122505,0.37769,2647.8,2647.7,6.9846]
[1729429122705,0.37769,2647.8,2647.7,3.2078]
[1729429124811,0.37769,2647.8,2647.7,6.9846]
[1729429125311,0.37769,2647.8,2647.7,7.4109]
[1729429125507,0.37769,2647.8,2647.7,3.6341]
[1729429126212,0.37768,2647.9,2647.7,4.01179]
[1729429126412,0.37768,2647.9,2647.8,0.3936]
[1729429127310,0.3928,2648.1,2647.7,3.2078]
[1729429127515,0.79909,2647.8,2647.7,3.2078]
[1729429128716,0.37774,2647.4,2647.3,0.394]
[1729429128911,0.37777,2647.3,2647.2,0.826]
[1729429129214,0.37777,2647.3,2647.1,3.98719]
[1729429129215,0.37777,2647.2,2647.1,1.6216]
[1729429129425,0.78297,2647.2,2647.1,1.6216]
[1729429129713,0.78297,2647.2,2647.1,0.394]
[1729429132519,0.4031,2647.7,2647.1,0.394]
[1729429132715,0.37774,2647.5,2647.4,3.2078]
[1729429132914,1.1878,2647.7,2647.4,3.2078]
[1729429133117,1.1878,2647.7,2647.4,3.58554]
[1729429133118,0.37772,2647.6,2647.4,3.58554]
[1729429133421,0.37772,2647.6,2647.5,0.4178]
[1729429134717,1.16241,2647.7,2647.5,0.79552]
[1729429135614,0.37771,2647.6,2647.5,0.79552]
[1729429137415,0.37771,2647.6,2647.5,4.00332]
[1729429137817,0.3936,2647.7,2647.5,3.6256]
[1729429138020,0.77131,2647.7,2647.6,0.37771]
[1729429139317,0.37769,2647.8,2647.5,4.61335338]
[1729429139521,0.37769,2647.8,2647.7,0.3777]
[1729429139720,0.394,2647.9,2647.6,0.98775338]
[1729429139918,0.3777,2647.8,2647.6,1.36546338]
[1729429140419,0.3777,2647.8,2647.7,0.98775338]
[1729429141615,0.3777,2647.8,2647.7,4.57325338]
[1729429142116,0.37769,2647.8,2647.7,4.19555338]
[1729429144424,0.37769,2647.8,2647.7,4.57325338]
[1729429144818,0.37768,2647.9,2647.7,4.96305338]
[1729429145018,0.37768,2647.9,2647.8,0.4205]
[1729429145627,0.37768,2647.9,2647.8,1.40825338]
[1729429146317,0.37768,2647.9,2647.8,0.4205]
[1729429153427,0.37768,2647.9,2647.8,3.45321449]
[1729429153627,0.37768,2647.9,2647.8,3.45318203]
[1729429153824,0.37768,2647.9,2647.8,6.66098203]
[1729429154927,0.37768,2647.9,2647.8,5.17935196]
[1729429155333,0.37768,2647.9,2647.8,6.66098203]
[1729429155533,0.37767,2647.9,2647.8,7.03866203]
[1729429155732,0.37767,2647.9,2647.8,6.66098203]
[1729429158238,0.37767,2647.9,2647.8,3.45318203]
[1729429158426,0.37767,2647.9,2647.8,6.65941421]
[1729429159631,0.37767,2647.9,2647.8,3.45161421]
[1729429159837,0.37767,2647.9,2647.8,6.65949919]
[1729429160232,0.37767,2647.9,2647.8,3.45169919]
[1729429160437,0.37767,2647.9,2647.8,6.65949919]
[1729429161038,0.37767,2647.9,2647.8,3.45169919]
[1729429161442,0.37767,2647.9,2647.8,0.4205]
[1729429168341,0.37769,2647.8,2647.7,0.98997778]
[1729429168746,0.3777,2647.7,2647.6,0.98997778]
[1729429168945,1.1656,2647.7,2647.6,0.98997778]
[1729429169334,0.37771,2647.6,2647.5,0.98997778]
[1729429169542,0.37773,2647.5,2647.4,0.98997778]
[1729429171347,0.37774,2647.4,2647.3,0.98997778]
[1729429171545,0.37774,2647.4,2647.3,2.53975101]
[1729429172242,0.37777,2647.2,2647.1,0.98997778]
[1729429172943,0.37779,2647.1,2647.0,0.98997778]
[1729429173138,0.4013,2647.1,2646.9,1.39647778]
[1729429173339,0.7967,2647.0,2646.9,0.98997778]
[1729429173651,41.5967,2647.0,2646.9,0.98997778]
[1729429173952,41.5967,2647.0,2646.9,2.53921956]
[1729429174246,41.5967,2647.0,2646.9,0.98997778]
[1729429176846,0.7967,2647.0,2646.9,0.98997778]
[1729429178745,0.37781,2646.9,2646.7,6.29030667]
[1729429179055,0.37782,2646.9,2646.8,1.54767792]
[1729429179256,0.37782,2646.9,2646.8,2.53624212]
[1729429179954,0.37782,2646.9,2646.8,2.53438818]
[1729429180142,0.37782,2646.9,2646.8,0.9885642]
[1729429181451,0.37783,2646.8,2646.7,1.8019642]
[1729429181653,0.37783,2646.8,2646.7,0.8134]
[1729429188959,0.37783,2646.8,2646.7,4.0212]
[1729429191063,0.37783,2646.8,2646.7,0.8134]
[1729429196274,0.37787,2646.5,2646.4,0.4288]
[1729429196565,0.37791,2646.2,2646.1,0.833]
[1729429197468,0.37794,2646.0,2645.9,0.9885642]
[1729429198863,0.37797,2645.8,2645.7,1.3866642]
[1729429203373,0.94472,2646.4,2645.7,1.3866642]
[1729429203563,1.33982,2646.4,2645.7,1.3866642]
[1729429203764,0.3779,2646.3,2645.8,0.37797]
[1729429203963,0.37796,2645.9,2645.7,2.5646442]
[1729429204173,0.37796,2645.9,2645.7,2.1866642]
[1729429204363,0.37797,2645.8,2645.7,2.1866642]
[1729429204563,0.37797,2645.8,2645.7,1.3866642]
[1729429208873,0.37797,2645.8,2645.7,0.3981]
[1729429211864,0.3945,2646.1,2645.7,0.3981]
[1729429212172,0.4026,2646.3,2645.8,0.3927]
[1729429212381,0.37794,2646.1,2645.9,3.58575]
[1729429212571,0.37794,2646.1,2646.0,0.4218]
[1729429212778,0.3923,2646.5,2646.0,4.201]
[1729429212779,0.3922,2646.5,2646.0,4.201]
[1729429212973,0.94441,2647.3,2646.4,3.2078]
[1729429213170,3.2078,2647.6,2646.7,3.2078]
[1729429213477,0.94436,2647.4,2646.7,3.2078]
[1729429213677,0.37783,2646.9,2646.7,3.2078]
[1729429213873,0.9444,2647.3,2646.7,4.0048]
[1729429213874,0.37783,2646.8,2646.7,4.0048]
[1729429214077,41.1922,2647.5,2646.7,4.0048]
[1729429214382,0.37781,2647.0,2646.7,4.38264]
[1729429215179,41.1922,2647.5,2646.7,4.0048]
[1729429215471,0.3778,2647.1,2646.7,4.38263]
[1729429215672,0.3778,2647.1,2646.8,0.37782]
[1729429216073,0.3778,2647.0,2646.9,0.4007]
[1729429216674,41.1922,2647.5,2646.9,0.4007]
[1729429216868,0.37779,2647.1,2647.0,0.4068]
[1729429218370,41.1922,2647.5,2647.0,3.9924]
[1729429218683,41.1922,2647.5,2647.0,3.6146]
[1729429218684,0.37775,2647.4,2647.0,3.6146]
[1729429218878,0.37775,2647.4,2647.2,0.37777]
[1729429219180,41.1922,2647.5,2647.2,0.37777]
[1729429219377,0.37775,2647.4,2647.2,0.37777]
[1729429219889,40.8,2647.5,2647.4,0.37774]
[1729429220078,0.37772,2647.6,2647.4,0.37774]
[1729429220374,0.403,2648.0,2647.4,0.37774]
[1729429220375,1.18401,2647.7,2647.5,0.37773]
[1729429220581,40.8,2647.6,2647.5,0.37773]
[1729429221082,41.17772,2647.6,2647.4,0.77403]
[1729429221379,40.8,2647.6,2647.4,0.3963]
[1729429221579,41.17772,2647.6,2647.4,0.77404]
[1729429222277,40.8,2647.6,2647.4,0.77404]
[1729429222675,0.37773,2647.5,2647.4,0.3963]
[1729429222880,41.17773,2647.6,2647.4,0.3963]
[1729429223075,0.37773,2647.5,2647.4,0.3963]
[1729429223280,41.17772,2647.6,2647.4,0.3963]
[1729429223474,0.37773,2647.5,2647.4,0.3963]
[1729429223676,40.8,2647.6,2647.4,0.3963]
[1729429223877,41.17773,2647.6,2647.4,0.3963]
[1729429224183,40.8,2647.6,2647.3,3.2078]
[1729429224386,40.8,2647.6,2647.1,0.3891]
[1729429224387,0.37777,2647.2,2647.1,0.3891]
[1729429224581,0.4263,2647.5,2647.0,1.2038]
[1729429224788,0.37778,2647.2,2647.0,1.2038]
[1729429224983,0.37778,2647.2,2647.0,1.5816]
[1729429225186,0.37777,2647.2,2647.1,3.2078]
[1729429225684,0.4263,2647.5,2647.1,3.2078]
[1729429226487,0.37777,2647.3,2647.1,3.2078]
[1729429226685,0.37777,2647.3,2647.0,1.58159]
[1729429226887,0.37775,2647.4,2647.1,3.58557]
[1729429227185,0.37775,2647.4,2647.2,0.37777]
[1729429227381,0.4263,2647.5,2647.1,3.2078]
[1729429227591,0.37776,2647.3,2647.1,4.38258]
[1729429227984,0.37777,2647.2,2647.1,4.0048]
[1729429228185,0.37776,2647.3,2647.1,4.38259]
[1729429228992,0.37776,2647.3,2647.1,1.17479]
[1729429229181,0.37776,2647.3,2647.2,3.2078]
[1729429229377,0.4263,2647.5,2647.2,0.37776]
[1729429229378,0.80404,2647.5,2647.2,0.37776]
[1729429230091,0.80404,2647.5,2647.2,3.58556]
[1729429230688,0.80403,2647.5,2647.3,0.37775]
[1729429230986,0.37772,2647.6,2647.4,0.37774]
[1729429231188,1.18401,2647.7,2647.5,0.77332]
[1729429231385,0.8063,2647.7,2647.5,0.3956]
[1729429231686,0.37771,2647.6,2647.5,0.3956]
[1729429232280,0.37771,2647.6,2647.5,0.77333]
[1729429232679,0.37771,2647.6,2647.5,0.3956]
[1729429234994,0.8063,2647.7,2647.5,0.3956]
[1729429235193,1.18401,2647.7,2647.5,0.77332]
[1729429236093,0.8063,2647.7,2647.6,0.37771]
[1729429236293,1.184,2647.7,2647.6,0.37771]
[1729429237094,0.8063,2647.7,2647.6,0.37771]
[1729429237497,1.184,2647.7,2647.6,0.37771]
[1729429237692,41.2161,2647.8,2647.5,0.3956]
[1729429237693,41.59379,2647.8,2647.5,0.3956]
[1729429237893,40.8,2647.8,2647.7,0.3777]
[1729429238095,0.37766,2648.0,2647.9,0.37767]
[1729429238297,1.2473,2648.1,2647.8,3.2078]
[1729429238501,0.37766,2648.0,2647.9,1.21427]
[1729429238898,0.37766,2648.0,2647.9,0.8366]
[1729429239398,0.37766,2648.0,2647.9,1.21427]
[1729429239701,42.00895,2648.1,2647.9,1.21427]
[1729429239895,0.8178,2648.4,2647.9,0.8366]
[1729429240202,3.2078,2648.5,2648.1,3.2078]
[1729429240397,0.37761,2648.4,2648.2,0.37762]
[1729429240592,0.401,2648.5,2648.1,3.2078]
[1729429240798,0.3776,2648.4,2648.1,3.58543]
[1729429241099,0.401,2648.5,2648.1,3.2078]
[1729429241304,0.37761,2648.4,2648.1,3.2078]
[1729429241905,0.401,2648.5,2648.1,3.58543]
[1729429241906,0.37762,2648.3,2648.1,3.58543]
[1729429242198,0.401,2648.5,2648.1,3.2078]
[1729429242390,0.401,2648.5,2648.2,0.37763]
[1729429242590,0.37761,2648.4,2648.2,0.37763]
[1729429242898,0.401,2648.5,2648.1,3.2078]
[1729429243096,0.3776,2648.4,2648.2,3.58542]
[1729429243298,0.7786,2648.5,2648.3,0.37761]
[1729429243504,0.3776,2648.4,2648.2,3.58542]
[1729429243698,0.7786,2648.5,2648.3,0.37761]
[1729429243899,0.3776,2648.4,2648.2,3.58542]
[1729429244802,0.3776,2648.4,2648.2,3.2078]
[1729429246097,0.37761,2648.3,2648.2,3.2078]
[1729429246293,0.37761,2648.4,2648.2,4.38543]
[1729429246499,0.401,2648.5,2648.2,4.38543]
[1729429246903,0.401,2648.5,2648.2,4.0078]
[1729429247097,0.37761,2648.4,2648.3,0.4081]
[1729429250511,0.7786,2648.5,2648.3,0.78571]
[1729429250911,0.3776,2648.4,2648.3,0.4081]
[1729429252808,0.401,2648.5,2648.3,0.8324]
[1729429253107,0.401,2648.5,2648.3,1.21]
[1729429253108,0.77859,2648.5,2648.3,1.21]
[1729429254009,0.401,2648.5,2648.4,0.3776]
[1729429254215,41.216,2648.6,2648.4,0.3776]
[1729429254511,41.59358,2648.6,2648.4,0.3776]
[1729429254916,0.37759,2648.5,2648.3,1.21]
[1729429255211,0.37759,2648.5,2648.4,0.3776]
[1729429255910,41.216,2648.6,2648.3,0.8324]
[1729429256118,0.3776,2648.4,2648.3,1.21001]
[1729429258319,0.3776,2648.5,2648.3,1.21001]
[1729429259116,0.3776,2648.4,2648.3,1.21001]
[1729429259322,41.6327,2648.6,2648.2,4.0078]
[1729429259515,41.6327,2648.6,2648.2,3.2078]
[1729429259516,0.78821,2648.3,2648.2,3.2078]
[1729429259918,0.4106,2648.3,2648.1,1.2077]
[1729429260123,0.37763,2648.2,2648.1,1.2077]
[1729429261007,0.4106,2648.3,2648.1,1.58534]
[1729429261008,0.78822,2648.3,2648.1,1.58534]
[1729429261519,0.37762,2648.3,2648.1,1.58534]
[1729429262112,0.4269,2648.5,2648.1,0.78534]
[1729429262415,0.37763,2648.3,2648.1,1.58534]
[1729429263514,0.4269,2648.5,2648.2,3.2078]
[1729429263717,0.4269,2648.5,2648.4,0.3776]
[1729429263718,0.37759,2648.5,2648.4,0.3776]
[1729429264211,0.37759,2648.5,2648.4,0.8043]
[1729429264413,0.79358,2648.6,2648.4,0.8043]
[1729429264814,0.79358,2648.6,2648.5,0.4123]
[1729429265020,0.37758,2648.6,2648.5,0.4123]
[1729429267825,0.37761,2648.3,2648.2,4.0078]
[1729429268120,0.37761,2648.4,2648.2,5.19432]
[1729429268329,0.9439,2648.7,2648.2,5.19432]
[1729429268512,0.37761,2648.3,2648.2,5.19432]
[1729429268714,0.37761,2648.4,2648.2,5.19432]
[1729429269117,0.37761,2648.4,2648.2,4.8167]
[1729429269325,0.3776,2648.5,2648.3,0.37761]
[1729429269728,0.8366,2648.8,2648.2,4.8167]
[1729429269922,0.37758,2648.6,2648.4,0.37759]
[1729429270522,0.8366,2648.8,2648.5,3.2078]
[1729429270732,0.37757,2648.6,2648.5,3.2078]
[1729429271926,0.4269,2648.8,2648.7,0.37756]
[1729429272732,0.37754,2648.8,2648.7,0.37756]
[1729429273225,0.3976,2649.0,2648.6,0.812]
[1729429273530,0.37753,2648.9,2648.7,0.37755]
[1729429273717,0.3976,2649.0,2648.6,0.812]
[1729429273920,0.37754,2648.8,2648.7,0.37755]
[1729429274525,0.37753,2648.9,2648.8,0.37754]
[1729429274738,0.37753,2648.9,2648.8,3.58534]
[1729429275227,0.37753,2648.9,2648.8,0.37754]
[1729429275429,0.37753,2649.0,2648.9,0.37753]
[1729429276335,0.37753,2648.9,2648.8,3.58534]
[1729429277434,0.37753,2648.9,2648.8,3.2078]
[1729429278019,0.4226,2649.2,2648.8,3.2078]
[1729429278220,0.37751,2649.1,2648.9,0.37752]
[1729429279123,0.3925,2649.4,2648.8,3.2078]
[1729429279324,0.3925,2649.4,2648.9,0.37753]
[1729429279325,0.37751,2649.1,2648.9,0.37753]
[1729429279629,0.37751,2649.1,2649.0,0.3897]
[1729429281432,0.37751,2649.1,2648.7,0.9885642]
[1729429281433,0.37754,2648.8,2648.7,0.9885642]
[1729429281730,44.0078,2649.3,2648.5,3.2078]
[1729429281731,0.37757,2648.6,2648.5,3.2078]
[1729429281920,0.37757,2648.6,2648.5,3.6071]
[1729429284536,0.37757,2648.6,2648.5,0.3993]
[1729429286623,0.37757,2648.6,2648.5,1.3878642]
[1729429287028,0.37757,2648.6,2648.5,1.7654542]
[1729429287731,0.37757,2648.6,2648.5,1.3878642]
[1729429287941,0.37757,2648.6,2648.5,4.5956642]
[1729429288836,2.14861,2649.0,2648.5,4.5956642]
[1729429289038,0.37757,2648.7,2648.5,4.9732442]
[1729429289233,0.37757,2648.7,2648.5,3.98468]
[1729429289431,0.37757,2648.6,2648.5,3.98468]
[1729429289835,0.37757,2648.6,2648.5,0.77688]
[1729429290234,0.37757,2648.6,2648.5,3.6071]
[1729429290426,0.37757,2648.6,2648.5,3.98469]
[1729429290948,0.37757,2648.7,2648.6,0.37757]
[1729429291530,0.37757,2648.7,2648.5,3.6071]
[1729429291731,0.37757,2648.7,2648.5,3.98468]
[1729429292934,0.37757,2648.6,2648.5,3.98468]
[1729429293740,0.37757,2648.6,2648.5,3.6071]
[1729429293931,0.37757,2648.6,2648.5,0.3993]
[1729429294134,0.37753,2648.9,2648.5,3.98468]
[1729429294442,0.37757,2648.7,2648.5,3.98468]
[1729429294745,0.37757,2648.6,2648.5,3.98468]
[1729429296340,0.37756,2648.7,2648.6,0.37757]
[1729429296732,0.37756,2648.7,2648.5,3.6071]
[1729429296929,0.37756,2648.7,2648.5,3.98468]
[1729429297339,0.37756,2648.7,2648.6,3.02743893]
[1729429298140,0.37753,2648.9,2648.7,0.37756]
[1729429298345,0.3959,2649.0,2648.8,6.16286414]
[1729429298637,0.77342,2649.0,2648.9,1.54245551]
[1729429298848,0.77342,2649.0,2648.9,1.94795551]
[1729429299050,0.4176,2649.2,2648.9,3.43292218]
[1729429299239,3.2078,2649.4,2649.2,0.37749]
[1729429299240,0.4243,2649.3,2649.2,0.37749]
[1729429299436,0.4243,2649.3,2649.2,0.98915393]
[1729429299437,0.80178,2649.3,2649.2,0.98915393]
[1729429301542,0.4243,2649.3,2649.2,0.98915393]
[1729429301747,0.4243,2649.3,2649.2,1.36664393]
[1729429302454,0.4243,2649.3,2649.2,0.37749]
[1729429302648,0.80177,2649.3,2649.2,0.98915393]
[1729429303234,0.4243,2649.3,2649.1,4.19695393]
[1729429303445,0.4243,2649.3,2649.2,1.36664393]
[1729429303950,0.37746,2649.4,2649.2,1.79564393]
[1729429304443,0.37746,2649.4,2649.3,0.4208]
[1729429307349,0.37746,2649.4,2649.3,0.79827]
[1729429307545,0.37745,2649.5,2649.3,0.79827]
[1729429307947,0.37745,2649.5,2649.3,0.4208]
[1729429308152,0.37745,2649.5,2649.4,0.37746]
[1729429308647,0.4071,2649.6,2649.3,0.4208]
[1729429308847,0.37746,2649.4,2649.3,0.4208]
[1729429309050,0.37746,2649.4,2649.3,0.79827]
[1729429309351,0.37746,2649.4,2649.3,0.4208]
[1729429310448,0.37746,2649.4,2649.3,0.79827]
[1729429310651,0.37746,2649.4,2649.3,0.4208]
[1729429312263,0.37746,2649.4,2649.3,0.79827]
[1729429312449,0.37746,2649.4,2649.3,0.4208]
[1729429325148,0.3775,2649.1,2649.0,0.785]
[1729429326365,0.37751,2649.0,2648.9,0.4078]
[1729429330758,0.37751,2649.0,2648.8,0.4139]
[1729429330759,0.37754,2648.8,2648.7,3.6037]
[1729429331058,0.37754,2648.8,2648.7,3.9986]
[1729429331756,0.8338,2649.1,2648.7,3.9986]
[1729429332061,0.37754,2648.9,2648.7,5.36530393]
[1729429332257,0.37754,2648.8,2648.7,5.36530393]
[1729429332461,0.37754,2648.8,2648.7,5.91767481]
[1729429332655,0.37754,2648.8,2648.7,6.90626158]
[1729429333061,1.34616,2649.2,2648.7,5.91767481]
[1729429333260,0.37754,2648.9,2648.8,0.98859833]
[1729429334559,1.34616,2649.2,2648.7,6.14475833]
[1729429334755,0.37754,2648.8,2648.7,5.76719833]
[1729429336466,0.37754,2648.8,2648.7,6.14475833]
[1729429336760,1.34616,2649.2,2648.7,7.68660545]
[1729429336965,0.37754,2648.8,2648.7,5.76719833]
[1729429337359,0.37754,2648.8,2648.7,7.30906175]
[1729429337560,0.37754,2648.9,2648.7,6.69801342]
[1729429337860,0.37751,2649.1,2648.9,0.37752]
[1729429338068,0.37751,2649.1,2649.0,0.4208]
[1729429338254,0.8253,2649.5,2649.0,0.4208]
[1729429338461,0.8253,2649.5,2649.1,1.21]
[1729429338665,0.37748,2649.3,2649.1,1.21]
[1729429338967,0.4147,2649.5,2649.1,2.19878881]
[1729429339176,0.37748,2649.3,2649.1,2.19878881]
[1729429339568,0.4147,2649.5,2649.1,1.82128881]
[1729429339869,0.37749,2649.2,2649.1,1.82128881]
[1729429340372,0.37749,2649.2,2649.1,3.85950239]
[1729429341266,0.4147,2649.5,2649.1,4.23700239]
[1729429341463,0.37747,2649.3,2649.2,0.98896754]
[1729429341665,0.37747,2649.3,2649.2,2.53118421]
[1729429342064,0.37747,2649.3,2649.2,2.53119596]
[1729429342273,0.37747,2649.3,2649.2,1.54222842]
[1729429343067,0.37747,2649.3,2649.2,3.02719509]
[1729429343576,0.37747,2649.3,2649.2,1.54222842]
[1729429344669,0.37747,2649.3,2649.2,3.02719509]
[1729429346672,0.37747,2649.3,2649.2,3.02746554]
[1729429348076,0.4147,2649.5,2649.2,3.02746554]
[1729429348265,0.37746,2649.4,2649.3,2.90912435]
[1729429348465,0.37746,2649.4,2649.3,3.40491363]
[1729429348871,0.37746,2649.4,2649.3,3.02744363]
[1729429350272,0.37745,2649.5,2649.3,3.40490363]
[1729429350474,0.37745,2649.5,2649.4,6.53664929]
[1729429350673,0.37745,2649.5,2649.4,6.15918929]
[1729429350866,0.37745,2649.5,2649.4,6.65514363]
[1729429351264,0.37745,2649.5,2649.4,3.44734363]
[1729429351467,0.37745,2649.5,2649.4,6.65492489]
[1729429352274,0.37745,2649.5,2649.4,5.16995822]
[1729429353183,0.37745,2649.5,2649.4,6.15887077]
[1729429354177,0.37745,2649.5,2649.4,2.95105951]
[1729429354376,0.37745,2649.5,2649.4,1.96215822]
[1729429354578,0.37745,2649.5,2649.4,2.95105121]
[1729429354783,0.37745,2649.5,2649.4,1.96215822]
[1729429354975,0.37745,2649.5,2649.4,1.40881144]
[1729429355176,0.37745,2649.5,2649.4,2.95097073]
[1729429355373,0.37745,2649.5,2649.4,2.95095686]
[1729429355578,0.37745,2649.5,2649.4,2.9509277]
[1729429356581,0.37745,2649.5,2649.4,3.3580277]
[1729429356779,0.37745,2649.5,2649.4,0.827]
[1729429361778,3.6353,2649.7,2649.2,0.98891144]
[1729429361982,0.37749,2649.2,2649.1,3.2078]
[1729429362680,0.41,2649.3,2648.9,1.40801144]
[1729429362878,0.37751,2649.0,2648.9,1.40801144]
[1729429363178,0.37751,2649.0,2648.9,0.4191]
[1729429363377,0.77171,2649.0,2648.9,0.4191]
[1729429364791,0.77171,2649.0,2648.9,3.44607945]
[1729429365588,0.77171,2649.0,2648.9,1.90406667]
[1729429365781,0.77171,2649.0,2648.9,3.44606053]
[1729429370478,0.77171,2649.0,2648.9,1.96109386]
[1729429370683,0.77171,2649.0,2648.9,1.54199386]
[1729429370884,0.77171,2649.0,2648.9,3.02696053]
[1729429372794,0.77171,2649.0,2648.9,3.42726053]
[1729429375290,0.77171,2649.0,2648.9,3.42707103]
[1729429377094,0.37751,2649.1,2648.9,3.92262811]
[1729429377285,0.37751,2649.1,2649.0,3.02533659]
[1729429378289,0.37751,2649.1,2649.0,3.40284659]
[1729429378491,0.37751,2649.1,2649.0,1.65983496]
[1729429379597,0.37751,2649.1,2649.0,1.54180436]
[1729429380000,0.37751,2649.1,2649.0,3.02595555]
[1729429380694,0.37751,2649.1,2649.0,3.40346555]
[1729429381088,0.37751,2649.1,2649.0,3.40354509]
[1729429381788,0.37751,2649.1,2649.0,3.02603509]
[1729429382400,0.37751,2649.1,2649.0,1.54233089]
[1729429382594,0.37751,2649.1,2649.0,4.75013089]
[1729429383197,0.37751,2649.1,2649.0,6.23383509]
[1729429383401,0.37751,2649.1,2649.0,6.6116364]
[1729429383903,0.37748,2649.3,2649.1,0.37749]
[1729429384102,0.3961,2649.5,2649.2,1.37952399]
[1729429384297,0.37746,2649.4,2649.3,4.60792399]
[1729429384495,0.37746,2649.4,2649.3,1.40012399]
[1729429385392,0.37746,2649.4,2649.3,1.77759399]
[1729429386306,0.37746,2649.4,2649.3,0.78827]
[1729429386595,0.37746,2649.4,2649.3,1.77759399]
[1729429386793,0.3961,2649.5,2649.3,3.43733961]
[1729429387006,0.37745,2649.5,2649.4,1.36674275]
[1729429387190,0.37745,2649.5,2649.4,1.91997068]
[1729429387392,0.37744,2649.6,2649.5,0.37744]
[1729429387697,0.37744,2649.6,2649.5,1.36670801]
[1729429387899,0.37744,2649.6,2649.5,3.82041643]
[1729429388099,0.37744,2649.6,2649.5,3.44297643]
[1729429388306,0.37744,2649.6,2649.5,1.95899044]
[1729429389035,0.37744,2649.6,2649.5,2.33643044]
[1729429389417,0.37744,2649.6,2649.5,2.94811126]
[1729429389626,0.37744,2649.6,2649.5,1.40562082]
[1729429390145,0.37744,2649.6,2649.5,2.94796039]
[1729429392131,0.37744,2649.6,2649.5,1.40562082]
[1729429392829,0.37744,2649.6,2649.5,0.98912082]
[1729429393011,0.37744,2649.6,2649.4,0.98912082]
[1729429393012,0.37744,2649.5,2649.4,0.98912082]
[1729429393212,0.37744,2649.5,2649.3,4.60772082]
[1729429393213,0.37746,2649.4,2649.3,4.60772082]
[1729429393522,0.79846,2649.4,2649.3,6.14993791]
[1729429393811,0.79846,2649.4,2649.3,4.60772082]
[1729429394704,0.79846,2649.4,2649.3,3.6186]
[1729429397204,0.79846,2649.4,2649.3,0.4108]
[1729429400017,0.79846,2649.4,2649.2,3.2078]
[1729429400018,0.37747,2649.3,2649.2,3.2078]
[1729429400497,4.15187,2649.3,2649.2,3.2078]
[1729429400694,0.37747,2649.3,2649.2,3.2078]
[1729429403801,0.37747,2649.3,2649.2,4.19692082]
[1729429404001,0.37747,2649.3,2649.2,5.73962434]
[1729429404913,0.37747,2649.3,2649.2,2.53182434]
[1729429405203,0.37747,2649.3,2649.2,5.73962434]
[1729429405408,0.37747,2649.3,2649.2,2.53182434]
[1729429405608,0.37747,2649.3,2649.2,5.73962434]
[1729429407201,0.37747,2649.3,2649.2,4.75079413]
[1729429407702,0.37747,2649.3,2649.2,1.54299413]
[1729429410111,0.37749,2649.2,2649.1,0.98961944]
[1729429410301,1.36465,2649.4,2649.0,4.59341944]
[1729429410610,0.3775,2649.1,2649.0,4.59341944]
[1729429410999,0.3775,2649.1,2649.0,1.38561944]
[1729429411206,0.3775,2649.1,2649.0,0.396]
[1729429411705,1.36465,2649.4,2648.9,0.98961944]
[1729429411901,0.37753,2648.9,2648.8,0.4279]
[1729429412296,0.78063,2648.9,2648.8,0.4279]
[1729429412703,0.78063,2648.9,2648.6,1.78181944]
[1729429412704,0.4031,2648.9,2648.6,1.78181944]
[1729429412910,0.37756,2648.7,2648.6,2.20971944]
[1729429413507,0.37756,2648.7,2648.6,0.8218]
[1729429413811,0.37756,2648.7,2648.6,0.4279]
[1729429414411,0.4031,2648.9,2648.4,0.98961944]
[1729429414412,0.37759,2648.5,2648.4,0.98961944]
[1729429414606,0.37759,2648.5,2648.4,0.4171]
[1729429415007,0.37759,2648.5,2648.4,1.40671944]
[1729429415304,0.37759,2648.5,2648.4,0.4171]
[1729429417006,0.37759,2648.5,2648.4,3.44306429]
[1729429419317,0.37759,2648.5,2648.4,1.9590783]
[1729429419513,0.37759,2648.5,2648.4,3.44306429]
[1729429420609,0.37759,2648.5,2648.4,2.9474523]
[1729429421013,0.37759,2648.5,2648.4,1.405474]